bitfinex-derivatives/quotes_ETHF0:USTF0_20240924
["timestamp","ask_amount","ask_price","bid_price","bid_amount"]
[1727148475376,0.38089,2625.5,2625.4,0.3746]
[1727148475777,0.38089,2625.5,2625.4,41.1746]
[1727148476077,0.38089,2625.6,2625.4,41.1746]
[1727148476682,0.38089,2625.5,2625.4,41.1746]
[1727148477481,0.38089,2625.6,2625.4,41.1746]
[1727148479090,0.38089,2625.6,2625.4,0.3746]
[1727148480196,3.5792,2626.0,2625.5,3.8088]
[1727148480386,0.38086,2625.7,2625.6,0.7708]
[1727148482186,0.38086,2625.8,2625.6,0.7708]
[1727148482388,0.38086,2625.8,2625.7,0.3699]
[1727148499807,0.38086,2625.7,2625.6,0.7708]
[1727148501511,0.38086,2625.8,2625.6,0.7708]
[1727148501907,0.38084,2625.9,2625.7,0.3659]
[1727148502304,0.38085,2625.8,2625.7,0.3659]
[1727148502608,0.38085,2625.9,2625.7,0.3659]
[1727148506807,0.38085,2625.8,2625.7,0.3659]
[1727148508109,0.38084,2625.9,2625.7,0.3659]
[1727148512413,0.38085,2625.8,2625.7,0.3659]
[1727148516327,0.38086,2625.7,2625.6,0.7708]
[1727148517618,0.38086,2625.7,2625.6,1.76395493]
[1727148518616,0.38086,2625.7,2625.6,3.13855556]
[1727148519724,3.604,2625.9,2625.6,3.63513303]
[1727148519913,3.604,2625.9,2625.6,1.76778243]
[1727148520514,0.38085,2625.8,2625.7,0.99698243]
[1727148523932,0.38086,2625.7,2625.6,1.76778243]
[1727148525518,0.38086,2625.7,2625.6,0.7708]
[1727148526327,0.38086,2625.7,2625.6,1.76778243]
[1727148526931,0.38086,2625.7,2625.6,0.7708]
[1727148528022,0.38086,2625.7,2625.6,1.76778243]
[1727148529733,0.38086,2625.7,2625.6,0.7708]
[1727148529923,0.38086,2625.7,2625.6,1.76778243]
[1727148530128,0.38086,2625.7,2625.6,0.7708]
[1727148531932,0.38086,2625.7,2625.6,1.76778243]
[1727148532134,0.38086,2625.7,2625.6,2.14462884]
[1727148532335,0.38086,2625.7,2625.6,3.63436124]
[1727148532529,0.38086,2625.7,2625.6,3.6343366]
[1727148532726,0.38086,2625.7,2625.6,2.1446042]
[1727148534242,0.38086,2625.8,2625.6,3.6343366]
[1727148534436,0.38086,2625.8,2625.7,0.99682627]
[1727148536340,3.2078,2625.9,2625.7,1.37366033]
[1727148536532,3.2078,2625.9,2625.8,0.99665606]
[1727148536734,3.2078,2625.9,2625.8,1.38185606]
[1727148537423,3.58864,2625.9,2625.8,1.38185606]
[1727148537628,3.58864,2625.9,2625.8,2.75620012]
[1727148537936,3.58864,2625.9,2625.8,1.75954406]
[1727148538339,3.58864,2625.9,2625.8,2.75668174]
[1727148539043,3.58864,2625.9,2625.8,0.3852]
[1727148542440,0.38081,2626.1,2625.8,6.56440515]
[1727148542643,3.5473,2626.4,2625.9,2.22713768]
[1727148542827,0.38081,2626.1,2626.0,0.7859]
[1727148547746,0.38081,2626.1,2625.8,4.823]
[1727148547747,1.23,2626.2,2625.8,1.38233768]
[1727148547940,0.38084,2625.9,2625.8,1.38233768]
[1727148549741,0.38084,2625.9,2625.8,0.3852]
[1727148550637,0.38084,2625.9,2625.8,1.38233768]
[1727148551651,0.38084,2625.9,2625.8,0.3852]
[1727148556049,0.77063,2626.0,2625.8,0.3852]
[1727148556347,0.38084,2625.9,2625.8,0.3852]
[1727148560755,9.19793,2625.9,2625.5,0.99713768]
[1727148560948,1.156,2625.8,2625.4,1.76723768]
[1727148561154,0.38089,2625.5,2625.4,1.76723768]
[1727148561344,0.38089,2625.5,2625.4,3.14070387]
[1727148561952,0.38089,2625.5,2625.4,1.76723768]
[1727148562151,0.38089,2625.5,2625.4,0.7701]
[1727148568054,0.38089,2625.5,2625.0,41.79713768]
[1727148568055,5.0388,2625.5,2625.0,41.79713768]
[1727148568254,1.61095,2625.1,2625.0,0.38]
[1727148568450,0.38097,2625.0,2624.9,0.7911]
[1727148569260,1.23,2625.1,2624.9,0.7911]
[1727148569461,0.38096,2625.1,2624.9,0.7911]
[1727148569763,4.4378,2625.3,2624.9,0.7911]
[1727148570761,0.38096,2625.1,2624.9,0.7911]
[1727148571561,0.38097,2625.0,2624.9,0.7911]
[1727148573060,4.4378,2625.3,2624.9,0.7911]
[1727148573558,4.4378,2625.0,2624.6,40.8]
[1727148573753,0.3968,2624.9,2624.6,0.3797]
[1727148573950,0.381,2624.8,2624.6,0.3797]
[1727148574454,1.55839,2624.9,2624.6,0.3797]
[1727148574855,0.381,2624.8,2624.6,0.3797]
[1727148575152,1.55839,2624.9,2624.6,0.3797]
[1727148575349,0.381,2624.8,2624.6,0.3797]
[1727148575754,1.1774,2624.9,2624.6,0.3797]
[1727148575963,0.381,2624.8,2624.6,0.3797]
[1727148576159,0.38101,2624.7,2624.6,0.3797]
[1727148576355,0.38101,2624.8,2624.6,0.3797]
[1727148576560,1.55839,2624.9,2624.6,0.3797]
[1727148576764,0.381,2624.8,2624.6,0.3797]
[1727148577866,1.55839,2624.9,2624.6,0.3797]
[1727148578053,0.77779,2624.9,2624.6,0.3797]
[1727148578256,0.38101,2624.7,2624.6,0.3797]
[1727148583467,1.611,2624.8,2624.6,0.3797]
[1727148583873,0.38101,2624.7,2624.6,0.3797]
[1727148585071,1.61101,2624.7,2624.6,0.3797]
[1727148596270,0.38102,2624.6,2624.5,0.7612]
[1727148596475,1.61102,2624.6,2624.5,0.7612]
[1727148597976,0.38109,2624.2,2623.9,3.02080001]
[1727148598189,1.23,2624.0,2623.7,0.3703]
[1727148598386,1.23,2624.0,2622.9,1.10013768]
[1727148598387,0.699,2623.4,2622.9,3.2078]
[1727148598585,0.699,2623.4,2622.3,0.3816]
[1727148598586,3.2078,2623.2,2622.3,42.03]
[1727148598781,3.2078,2623.0,2622.7,1.23]
[1727148598977,3.2078,2623.0,2622.8,1.1527]
[1727148599186,3.2078,2623.0,2622.8,4.9655]
[1727148599374,3.2078,2623.0,2622.8,1.1527]
[1727148599680,3.2078,2623.0,2622.9,3.8128]
[1727148599879,3.2078,2623.0,2622.8,4.9655]
[1727148600189,3.2078,2623.0,2622.9,3.8128]
[1727148602889,2.6072,2623.0,2622.9,3.8128]
[1727148603589,2.98846,2623.0,2622.9,3.8128]
[1727148604082,2.6072,2623.0,2622.9,3.8128]
[1727148604289,2.98846,2623.0,2622.9,3.8128]
[1727148604785,2.6072,2623.0,2622.9,3.8128]
[1727148609484,2.98846,2623.0,2622.9,3.8128]
[1727148610490,2.6072,2623.0,2622.9,3.8128]
[1727148610693,2.6072,2623.0,2622.9,44.6128]
[1727148612690,0.38125,2623.1,2622.9,44.6128]
[1727148612691,3.58905,2623.1,2622.9,44.6128]
[1727148612897,3.58905,2623.1,2622.9,40.8]
[1727148616298,3.2078,2623.1,2622.9,40.8]
[1727148616799,3.58904,2623.1,2622.9,40.8]
[1727148618811,0.38124,2623.1,2622.9,40.8]
[1727148619497,3.58904,2623.2,2622.9,40.8]
[1727148619705,0.38125,2623.1,2622.9,40.8]
[1727148620204,0.38124,2623.1,2622.9,40.8]
[1727148620904,0.38126,2623.0,2622.9,40.8]
[1727148621102,0.38126,2623.0,2622.8,0.7824]
[1727148621103,1.33446,2622.9,2622.8,0.7824]
[1727148621301,4.91326,2622.9,2622.8,0.3846]
[1727148621801,0.38132,2622.6,2622.5,0.7741]
[1727148622001,3.58912,2622.6,2622.5,0.7741]
[1727148622202,0.38136,2622.3,2622.2,41.1677]
[1727148622401,4.4478,2622.3,2622.2,0.7503]
[1727148622802,3.2078,2622.3,2622.2,0.7503]
[1727148622998,0.371,2622.5,2622.2,41.5503]
[1727148623299,0.75234,2622.5,2622.2,41.5503]
[1727148623505,0.371,2622.5,2622.3,0.3696]
[1727148624097,0.75233,2622.5,2622.3,0.3696]
[1727148625206,0.38134,2622.4,2622.3,0.3696]
[1727148625508,0.38133,2622.5,2622.3,0.3696]
[1727148625703,4.82912,2622.6,2622.3,0.3696]
[1727148625904,0.38133,2622.5,2622.3,0.3696]
[1727148626413,0.38134,2622.4,2622.3,0.3696]
[1727148626811,0.38134,2622.4,2622.3,4.1832]
[1727148627109,3.2078,2622.6,2622.3,4.56455]
[1727148627408,3.58912,2622.6,2622.3,1.6096]
[1727148627607,3.58912,2622.6,2622.3,0.3696]
[1727148628610,3.2078,2622.6,2622.3,0.75095]
[1727148629008,3.58912,2622.6,2622.3,0.75095]
[1727148630608,3.2078,2622.6,2622.4,0.38134]
[1727148630810,1.98379,2622.8,2622.4,0.38134]
[1727148631006,3.5711,2622.9,2622.3,0.3696]
[1727148631007,3.2078,2622.9,2622.5,1.24]
[1727148631299,0.089,2623.5,2622.8,1.62127]
[1727148631300,3.58903,2623.2,2622.8,1.62127]
[1727148631503,0.38125,2623.1,2622.9,1.1198]
[1727148632104,0.38126,2623.0,2622.9,1.1198]
[1727148632307,0.76816,2623.0,2622.6,0.3667]
[1727148632608,0.76816,2623.0,2622.7,1.1344]
[1727148632609,0.3869,2623.0,2622.7,1.1344]
[1727148633416,0.76816,2623.0,2622.7,1.1344]
[1727148633612,0.3869,2623.0,2622.8,0.38127]
[1727148634111,0.3869,2623.0,2622.9,0.38127]
[1727148634308,3.58903,2623.2,2622.9,0.38127]
[1727148634615,3.58903,2623.2,2622.7,0.7531]
[1727148634616,3.58903,2623.2,2622.8,0.38128]
[1727148634816,3.58903,2623.2,2622.9,0.38126]
[1727148635020,3.58903,2623.2,2622.8,0.38127]
[1727148635314,3.58903,2623.2,2622.8,0.38129]
[1727148636312,0.38124,2623.1,2622.8,0.38129]
[1727148636515,5.8878,2622.9,2622.2,40.889]
[1727148636815,0.4004,2622.8,2622.3,1.167]
[1727148637017,0.38132,2622.6,2622.3,1.167]
[1727148637214,0.38132,2622.6,2622.3,1.54836]
[1727148637410,3.2078,2622.9,2622.3,5.36196]
[1727148637619,3.2078,2624.4,2622.8,2.68]
[1727148637812,0.3632,2624.0,2623.3,5.8878]
[1727148638116,0.3632,2624.0,2623.6,3.06117]
[1727148638312,0.3632,2624.0,2623.7,0.3664]
[1727148643212,0.3632,2624.0,2623.7,0.74755]
[1727148643814,0.3632,2624.0,2623.7,0.3664]
[1727148648611,0.3632,2624.0,2623.7,0.74755]
[1727148649520,0.3632,2624.0,2623.8,0.38113]
[1727148650127,0.74431,2624.0,2623.7,0.74755]
[1727148651523,0.3632,2624.0,2623.7,0.3664]
[1727148651727,0.38113,2623.9,2623.7,0.3664]
[1727148652622,0.3632,2624.0,2623.7,0.3664]
[1727148653231,0.38114,2623.8,2623.5,3.2078]
[1727148653523,0.74766,2623.7,2623.4,0.7941]
[1727148653724,0.38117,2623.6,2623.4,0.7941]
[1727148653927,0.77287,2623.6,2623.4,0.3989]
[1727148654325,0.3917,2623.6,2623.4,0.78009]
[1727148654528,3.2078,2624.3,2623.6,0.38116]
[1727148654823,0.38112,2624.0,2623.7,0.3676]
[1727148655629,0.3811,2624.1,2623.7,0.74874]
[1727148655819,0.38112,2624.0,2623.7,0.74874]
[1727148656020,4.3452,2624.3,2623.7,0.3676]
[1727148656222,0.3811,2624.1,2623.8,0.38113]
[1727148656422,0.38111,2624.1,2623.8,0.38114]
[1727148656622,0.38111,2624.1,2623.9,0.3885]
[1727148657218,0.38111,2624.0,2623.9,0.3885]
[1727148658132,0.38111,2624.0,2623.7,0.7561]
[1727148658332,0.3921,2623.9,2623.7,0.7561]
[1727148658632,0.77323,2623.9,2623.7,0.7561]
[1727148660443,0.77323,2623.9,2623.7,3.9639]
[1727148660931,0.38114,2623.8,2623.7,0.3885]
[1727148661132,0.77344,2623.8,2623.7,0.3885]
[1727148666234,0.3921,2623.9,2623.7,0.3885]
[1727148666425,0.3921,2623.9,2623.8,0.38114]
[1727148666630,0.3811,2624.1,2623.8,1.11303]
[1727148666935,0.38106,2624.4,2624.2,0.38108]
[1727148667132,0.38106,2624.4,2624.3,0.7492]
[1727148667535,0.38105,2624.4,2624.3,0.7492]
[1727148669842,0.38105,2624.4,2624.3,0.3876]
[1727148671138,3.8104,2624.4,2623.9,3.2078]
[1727148671341,0.3811,2624.1,2623.9,3.2078]
[1727148671535,0.3969,2624.0,2623.9,3.2078]
[1727148673344,0.3969,2624.0,2623.8,0.3703]
[1727148673546,0.3969,2624.0,2623.8,3.5781]
[1727148674541,0.77801,2624.0,2623.8,3.5781]
[1727148675444,0.38113,2623.9,2623.8,3.5781]
[1727148675642,0.38114,2623.8,2623.7,0.7769]
[1727148675836,0.3822,2623.9,2623.7,0.7769]
[1727148676542,0.38114,2623.8,2623.7,0.7769]
[1727148677043,0.38114,2623.8,2623.7,0.3949]
[1727148678651,0.38117,2623.7,2623.5,0.3782]
[1727148679147,0.3756,2623.6,2623.5,0.3782]
[1727148679351,0.3756,2623.6,2623.4,0.7616]
[1727148679551,0.75678,2623.6,2623.4,0.7616]
[1727148679746,0.38118,2623.5,2623.4,0.7616]
[1727148680053,0.38118,2623.5,2623.4,0.3675]
[1727148680237,0.3936,2623.5,2623.4,0.3675]
[1727148680847,0.77478,2623.5,2623.4,0.3675]
[1727148681352,0.77478,2623.5,2623.2,0.771]
[1727148681552,0.77478,2623.5,2623.2,1.1414]
[1727148681739,0.77478,2623.5,2623.2,41.9414]
[1727148682338,0.3936,2623.5,2623.2,42.32262]
[1727148682648,0.3756,2623.6,2623.2,42.32262]
[1727148682848,0.75678,2623.6,2623.2,42.32262]
[1727148683045,0.75678,2623.6,2623.2,43.8112643]
[1727148683245,0.75678,2623.6,2623.2,42.32262]
[1727148683555,0.75678,2623.6,2623.3,1.35712879]
[1727148683753,0.75678,2623.6,2623.3,1.4886443]
[1727148683754,0.75677,2623.6,2623.3,1.4886443]
[1727148684244,0.38119,2623.5,2623.3,1.4886443]
[1727148684846,0.38119,2623.5,2623.2,43.8112643]
[1727148685053,0.3812,2623.4,2623.3,1.35623338]
[1727148685348,0.3812,2623.4,2623.2,43.4300443]
[1727148686049,0.38121,2623.3,2623.2,41.9414]
[1727148686846,0.38121,2623.4,2623.2,41.9414]
[1727148687050,0.38121,2623.3,2623.2,41.9414]
[1727148687551,0.38121,2623.3,2623.2,0.3704]
[1727148687752,0.38123,2623.2,2623.1,3.2078]
[1727148687944,0.76473,2623.2,2623.1,3.2078]
[1727148693160,0.38126,2623.0,2622.9,41.5901]
[1727148693346,0.75135,2623.1,2622.9,0.3911]
[1727148693548,0.3701,2623.1,2622.8,0.3865]
[1727148693849,0.38126,2623.0,2622.8,0.3865]
[1727148694256,0.38127,2622.9,2622.8,0.3865]
[1727148694455,0.75135,2623.1,2622.8,0.3865]
[1727148695655,0.75135,2623.1,2622.8,0.76779]
[1727148696256,0.38126,2623.0,2622.8,0.3865]
[1727148696964,0.38126,2623.0,2622.8,0.76778]
[1727148697158,0.38125,2623.1,2622.8,0.76778]
[1727148697964,0.38126,2623.0,2622.8,0.76778]
[1727148698476,0.38125,2623.1,2622.8,0.76778]
[1727148699878,0.38122,2623.3,2623.0,3.58905]
[1727148700175,0.3685,2623.4,2623.0,3.58905]
[1727148700176,0.38123,2623.2,2623.0,3.2078]
[1727148700377,0.3802,2623.2,2623.0,3.2078]
[1727148700569,0.76143,2623.2,2623.1,0.3777]
[1727148701375,0.76143,2623.2,2623.1,0.7713]
[1727148701976,7.2898,2623.9,2623.2,0.38122]
[1727148702165,0.3802,2623.7,2623.3,0.3632]
[1727148702565,3.2078,2623.9,2623.3,0.3632]
[1727148702771,3.2078,2623.9,2623.3,0.74441]
[1727148702772,0.76136,2623.7,2623.3,0.74441]
[1727148702971,0.38117,2623.6,2623.3,0.3632]
[1727148703267,0.38118,2623.6,2623.3,0.3632]
[1727148704381,0.38119,2623.5,2623.3,0.3632]
[1727148704577,3.0602,2623.7,2623.3,0.3632]
[1727148704780,3.0602,2623.7,2623.1,1.1488]
[1727148704781,0.3966,2623.4,2623.1,1.1488]
[1727148705373,0.7778,2623.4,2623.1,1.1488]
[1727148706579,0.38121,2623.3,2623.1,1.1488]
[1727148706783,0.77781,2623.4,2623.1,1.1488]
[1727148706974,0.38121,2623.3,2623.1,1.1488]
[1727148707869,0.76311,2623.3,2623.1,1.1488]
[1727148708075,0.38123,2623.2,2623.1,1.1488]
[1727148708284,0.38123,2623.2,2623.1,0.3936]
[1727148708584,0.38123,2623.2,2622.9,0.3962]
[1727148708585,4.19324,2623.2,2622.9,0.3962]
[1727148708776,0.38124,2623.2,2622.9,0.3962]
[1727148709282,0.38124,2623.1,2622.9,0.3962]
[1727148709578,0.38125,2623.1,2622.9,0.3962]
[1727148710080,0.3819,2623.3,2622.9,0.3962]
[1727148710081,0.38124,2623.2,2622.9,0.3962]
[1727148712185,0.38124,2623.1,2622.9,0.3962]
[1727148712372,0.3819,2623.3,2622.9,0.3962]
[1727148712578,0.38125,2623.1,2622.9,0.3962]
[1727148712780,0.38124,2623.2,2622.9,0.3962]
[1727148713479,0.38124,2623.1,2622.9,0.3962]
[1727148715079,0.38126,2623.0,2622.9,0.3962]
[1727148715571,0.38125,2623.1,2622.9,0.3962]
[1727148716076,0.74364,2623.2,2622.9,0.3962]
[1727148716276,0.38125,2623.1,2622.9,0.3962]
[1727148717377,0.38126,2623.0,2622.9,0.3962]
[1727148718085,0.38125,2623.1,2622.9,0.3962]
[1727148718281,0.38126,2623.0,2622.9,0.3962]
[1727148718588,0.38125,2623.1,2622.9,0.3962]
[1727148718787,0.38124,2623.2,2622.9,0.3962]
[1727148719381,0.38124,2623.1,2622.9,0.3962]
[1727148720582,0.38124,2623.1,2622.9,1.39363344]
[1727148721085,0.38126,2623.0,2622.9,0.3962]
[1727148721386,0.38125,2623.1,2622.9,1.39363344]
[1727148721988,0.38126,2623.0,2622.9,0.3962]
[1727148723580,0.38125,2623.1,2622.9,0.3962]
[1727148726086,0.3819,2623.3,2622.9,0.3962]
[1727148726290,0.38126,2623.0,2622.9,0.3962]
[1727148726491,0.38125,2623.1,2622.9,0.3962]
[1727148728487,0.38126,2623.0,2622.9,0.3962]
[1727148728680,0.38112,2624.0,2623.0,3.812]
[1727148728881,4.34205706,2624.2,2623.8,0.38114]
[1727148729081,0.38111,2624.1,2623.9,2.3357]
[1727148729287,0.38111,2624.0,2623.9,3.08482903]
[1727148729488,0.38111,2624.0,2623.8,0.99875928]
[1727148729489,0.38113,2623.9,2623.8,0.99875928]
[1727148729790,0.38113,2623.9,2623.7,1.49813892]
[1727148729791,0.38114,2623.8,2623.7,42.52736787]
[1727148730293,0.38114,2623.8,2623.7,41.5283]
[1727148730496,0.38114,2623.8,2623.7,0.7283]
[1727148730989,0.38114,2623.8,2623.7,41.5283]
[1727148731884,0.38116,2623.7,2623.6,0.99906787]
[1727148732086,0.38116,2623.7,2623.5,0.99906787]
[1727148732281,0.3888,2623.6,2623.5,0.99906787]
[1727148732486,0.3888,2623.6,2623.4,42.56296787]
[1727148732786,0.76998,2623.6,2623.4,1.76296787]
[1727148733082,2.00998,2623.6,2623.4,0.7639]
[1727148733285,0.76998,2623.6,2623.4,0.7639]
[1727148734290,0.38118,2623.5,2623.4,0.7639]
[1727148735693,0.3888,2623.6,2623.4,0.7639]
[1727148736498,0.3888,2623.6,2623.4,1.76296787]
[1727148736986,0.3699,2623.9,2623.4,7.19615787]
[1727148736987,0.75104,2623.9,2623.4,7.19615787]
[1727148737187,0.75104,2623.9,2623.6,0.99906787]
[1727148737188,1.13154,2623.9,2623.6,0.99906787]
[1727148737498,1.13154,2623.9,2623.7,0.3814]
[1727148737703,1.13154,2623.9,2623.8,0.382]
[1727148737901,1.13154,2623.9,2623.8,0.7635]
[1727148741504,1.13154,2623.9,2623.8,0.382]
[1727148743792,0.38116,2623.7,2623.6,0.3874]
[1727148744805,0.38115,2623.8,2623.6,0.3874]
[1727148744997,0.38116,2623.7,2623.6,0.3874]
[1727148748397,0.76163,2623.9,2623.6,0.3874]
[1727148749610,0.3805,2623.9,2623.6,0.3874]
[1727148749811,0.3805,2623.9,2623.6,0.76856]
[1727148750012,0.3805,2623.9,2623.6,2.00856]
[1727148750615,0.76163,2623.9,2623.6,3.00762787]
[1727148751316,0.76163,2623.9,2623.6,2.00856]
[1727148751608,0.76163,2623.9,2623.6,3.00762787]
[1727148752502,0.38114,2623.8,2623.6,3.00762787]
[1727148752913,0.38114,2623.8,2623.6,2.62646787]
[1727148753114,0.38114,2623.8,2623.6,3.00763787]
[1727148754609,0.38114,2623.8,2623.6,1.76763787]
[1727148755209,0.76163,2623.9,2623.7,0.38115]
[1727148755407,0.76163,2623.9,2623.8,0.7552]
[1727148756113,0.38113,2623.9,2623.8,0.7552]
[1727148756317,0.38112,2624.0,2623.8,0.7552]
[1727148756519,0.38111,2624.1,2623.8,3.963]
[1727148756815,0.38112,2624.0,2623.8,5.34319787]
[1727148757217,0.38112,2624.0,2623.9,3.8112]
[1727148758012,0.38113,2623.9,2623.8,3.963]
[1727148758411,0.38113,2623.9,2623.8,7.7742]
[1727148759216,0.38112,2624.0,2623.8,7.7742]
[1727148759518,0.38112,2624.0,2623.8,3.963]
[1727148761221,0.38113,2623.9,2623.8,3.963]
[1727148761519,0.38112,2624.0,2623.8,3.963]
[1727148762821,0.38113,2623.9,2623.8,3.963]
[1727148763222,0.38113,2623.9,2623.8,3.5826]
[1727148765629,0.38113,2623.9,2623.8,4.58166787]
[1727148767517,0.38113,2623.9,2623.8,5.93830173]
[1727148768328,0.38113,2623.9,2623.8,5.93830493]
[1727148768724,0.38113,2623.9,2623.8,4.58166787]
[1727148770329,0.38113,2623.9,2623.8,3.5826]
[1727148770922,0.38114,2623.8,2623.7,0.99906787]
[1727148771224,0.38116,2623.7,2623.6,0.99906787]
[1727148771930,0.3716,2623.9,2623.6,1.35679203]
[1727148772228,3.9882,2624.0,2623.7,0.99931246]
[1727148772422,0.38113,2623.9,2623.8,0.3813]
[1727148772620,0.38113,2623.9,2623.8,0.7703]
[1727148774622,0.38113,2623.9,2623.8,0.3813]
[1727148774818,0.38116,2623.7,2623.6,1.39951246]
[1727148775023,0.38116,2623.7,2623.6,1.77861246]
[1727148775931,0.38116,2623.7,2623.6,0.7793]
[1727148777532,0.38115,2623.8,2623.6,0.7793]
[1727148777831,0.38115,2623.8,2623.6,1.77861246]
[1727148778223,0.77841,2624.0,2623.7,5.0512]
[1727148778424,0.77842,2624.0,2623.7,2.23931246]
[1727148778833,0.77842,2624.0,2623.7,1.24]
[1727148779025,0.77842,2624.0,2623.7,2.23931246]
[1727148779222,0.77842,2624.0,2623.7,2.62046246]
[1727148779422,0.77842,2624.0,2623.7,2.23931246]
[1727148780034,0.77842,2624.0,2623.7,0.99931246]
[1727148780233,0.38113,2623.9,2623.7,0.99931246]
[1727148780431,0.38114,2623.8,2623.7,0.99931246]
[1727148780632,0.38114,2623.8,2623.7,2.35561141]
[1727148780832,0.38114,2623.8,2623.7,1.35629895]
[1727148781132,0.38114,2623.8,2623.7,0.99959276]
[1727148781537,0.38114,2623.8,2623.7,2.35599896]
[1727148781835,0.38114,2623.8,2623.7,2.35602217]
[1727148782032,0.74644,2623.8,2623.7,0.99959276]
[1727148782437,0.74644,2623.8,2623.7,2.3561292]
[1727148782737,0.74644,2623.8,2623.7,2.35614954]
[1727148782932,0.74644,2623.8,2623.7,1.35655678]
[1727148783241,0.38116,2623.7,2623.6,2.27743892]
[1727148783435,0.38116,2623.7,2623.6,3.63398754]
[1727148784133,0.74645,2623.8,2623.6,3.63398754]
[1727148784335,0.74645,2623.8,2623.7,2.35630874]
[1727148784532,0.74645,2623.8,2623.7,2.3563286]
[1727148784740,0.74645,2623.8,2623.7,0.99977998]
[1727148785034,0.74645,2623.8,2623.7,2.35635377]
[1727148785238,0.74645,2623.8,2623.7,0.99977998]
[1727148785944,0.74645,2623.8,2623.7,2.35576994]
[1727148786239,0.38115,2623.8,2623.7,2.35576994]
[1727148788038,0.38115,2623.8,2623.7,1.35598996]
[1727148788236,0.38115,2623.8,2623.7,2.3556546]
[1727148788741,0.38115,2623.8,2623.7,1.35598996]
[1727148789132,0.38115,2623.8,2623.7,2.35583755]
[1727148789646,1.6373,2624.0,2623.7,1.35609598]
[1727148789842,1.6373,2624.0,2623.7,0.99986703]
[1727148790536,0.38114,2623.8,2623.7,0.99986703]
[1727148790742,0.38114,2623.8,2623.7,2.35586277]
[1727148791332,0.38114,2623.8,2623.7,0.99986703]
[1727148791542,0.38116,2623.7,2623.6,0.7793]
[1727148791749,0.75706,2623.7,2623.6,3.63318739]
[1727148792633,0.38116,2623.7,2623.6,3.63318739]
[1727148793034,0.38116,2623.7,2623.6,3.63307218]
[1727148795649,0.3759,2623.9,2623.6,1.77921993]
[1727148795833,0.38113,2623.9,2623.6,1.77921993]
[1727148796033,0.38113,2623.9,2623.6,2.16037993]
[1727148796238,0.38113,2623.9,2623.7,0.99991993]
[1727148797336,0.38113,2623.9,2623.6,2.16037993]
[1727148797543,0.38113,2623.9,2623.7,0.99991993]
[1727148797846,0.38113,2623.9,2623.6,2.16037993]
[1727148798052,0.38115,2623.8,2623.6,1.77921993]
[1727148798842,0.38115,2623.8,2623.6,2.16038993]
[1727148800840,3.9916,2624.1,2623.6,2.16038993]
[1727148801040,0.38113,2623.9,2623.7,1.38106993]
[1727148801246,2.99774198,2624.3,2623.8,1.24]
[1727148801551,2.99774198,2624.3,2624.0,0.99991993]
[1727148801552,0.3811,2624.1,2624.0,0.99991993]
[1727148801846,0.3811,2624.1,2624.0,1.36701993]
[1727148802755,0.3811,2624.1,2624.0,3.21834153]
[1727148804453,0.38109,2624.2,2624.0,3.21834153]
[1727148804746,0.38109,2624.2,2624.1,0.99743147]
[1727148808455,0.74597,2624.3,2624.1,0.99743147]
[1727148808953,0.74597,2624.3,2624.2,0.3752]
[1727148812456,0.38107,2624.3,2624.2,0.3752]
[1727148812854,0.38107,2624.3,2624.2,41.1752]
[1727148815159,1.82854,2624.5,2624.2,46.00407]
[1727148815355,1.0855,2624.5,2624.4,1.62105]
[1727148815557,1.0855,2624.5,2624.4,5.43145]
[1727148815558,0.699,2624.5,2624.4,5.43145]
[1727148815756,0.699,2624.5,2624.4,7.41137575]
[1727148816262,0.699,2624.5,2624.4,6.82028147]
[1727148816457,0.699,2624.5,2624.4,11.82285]
[1727148816663,0.699,2624.5,2624.4,12.82028147]
[1727148816855,0.699,2624.5,2624.4,13.41103006]
[1727148817357,0.699,2624.5,2624.4,12.82028147]
[1727148817665,0.699,2624.5,2624.4,11.82285]
[1727148817856,0.12712132,2624.5,2624.4,14.66900905]
[1727148819059,0.25412132,2624.5,2624.4,14.66900905]
[1727148819451,0.25412132,2624.5,2624.4,14.16561361]
[1727148819657,0.25412132,2624.5,2624.4,14.66900905]
[1727148820066,4.1601,2625.4,2624.4,14.28795905]
[1727148820256,0.75495,2625.2,2624.9,0.38097]
[1727148820559,0.75495,2625.2,2625.0,0.7783]
[1727148821166,0.38095,2625.1,2625.0,0.7783]
[1727148821350,0.38095,2625.1,2625.0,2.0183]
[1727148822555,0.374,2625.2,2625.0,9.0357]
[1727148822857,0.3782,2625.4,2625.0,5.2261]
[1727148823055,0.3782,2625.4,2625.3,1.24]
[1727148823263,0.75911,2625.4,2625.3,1.24]
[1727148824965,0.75911,2625.4,2625.3,42.04]
[1727148825457,0.38094,2625.3,2625.1,0.3981]
[1727148825659,0.38094,2625.3,2625.1,1.6381]
[1727148825864,0.3757,2625.2,2625.1,1.6381]
[1727148826463,0.3757,2625.2,2625.1,42.4381]
[1727148827150,0.75664,2625.2,2625.1,41.1981]
[1727148827349,0.3757,2625.2,2625.1,42.4381]
[1727148828668,0.7748,2625.5,2625.1,42.4381]
[1727148828869,0.38091,2625.4,2625.2,1.24]
[1727148829662,0.38092,2625.4,2625.2,1.24]
[1727148830057,0.3808,2625.3,2625.2,1.24]
[1727148831055,0.3808,2625.3,2625.1,42.4381]
[1727148832469,0.3808,2625.3,2625.1,42.81905]
[1727148833469,0.3621,2625.2,2625.1,42.4381]
[1727148834170,0.3621,2625.2,2625.1,42.81905]
[1727148834372,0.38091,2625.4,2625.1,42.81905]
[1727148834557,0.74481,2625.4,2625.3,1.24]